Cogmind - Beta 13 @@@ ROGUE MODE // 2024.04.26 @ 19:06:52 Player: szymekc Result: Destroyed by G-67 Veteran with Field Laser Performance ------------- Evolutions (7) 3500 Regions Visited (26) 5200 Robots Destroyed (518) 2590 Value Destroyed (24234) 24234 Prototype IDs (101) 2020 Alien Tech Used (14) 2800 Bonus (26317) 26317 TOTAL SCORE: 66661 Bonus ------- Triggered High Security 500 Triggered Max Security 1000 High Alert Combat Kills 6987 Follower Combat Kills 111 Awakened Behemoth Slayer 1000 Aligned with FarCom 300 Met Data Miner 300 Met Imprinter 300 Destroyed Z-Imprinter 1000 Met Warlord at Base 500 MAIN.C Attacked Warlord 500 Warlord Defense Kills 1938 Found Hidden Lab 3000 Used Core Reset Matrix 3000 Scanned by Researcher 500 Pursued by Intercept 1500 Integrated Exoskeleton 5000 Friendly Fire -1119 Cogmind --------- Core Integrity 0/1300 Matter 245/300 Energy 200/200 System Corruption 16% Temperature Cool (24) Movement Walking (30) Location -3/Section 7 Parts ------- > --- POWER (1) -------- (None) > --- PROPULSION (3) --- Sigix Exoskeleton > --- UTILITY (3) ------ Large Storage Unit > --- WEAPON (2) ------- Sigix Shearcannon > --- INVENTORY (15) --- Improved Quantum Reactor Experimental Energy Well (600) Advanced Matter Compressor (342) Experimental Core Analyzer Experimental Core Analyzer Improved Armor Integrity Analyzer Improved Weapon Cycler Experimental Force Field Subatomic Replicator Microwarp Drive Warp Cannon Graviton Cannon Tiamat Missile Launcher Peak State ------------ > --- POWER ------------ Improved Quantum Reactor > --- PROPULSION ------- Sigix Exoskeleton > --- UTILITY ---------- Large Storage Unit Microwarp Drive > --- WEAPON ----------- Sigix Shearcannon > --- INVENTORY -------- Experimental Energy Well Advanced Matter Compressor Experimental Core Analyzer Experimental Core Analyzer Improved Armor Integrity Analyzer Improved Weapon Cycler Experimental Force Field Long-range Tractor Beam Transdimensional Reconstructor High-powered Transdimensional Reconstructor Subatomic Replicator Warp Cannon Graviton Cannon Tiamat Missile Launcher [Rating: 242] Favorites ----------- Power Quantum Reactor Engine Angular Momentum Engine Power Core Enhanced Nuclear Core Reactor Quantum Reactor Propulsion Combat Antigrav System Treads Light Treads Leg Centrium Leg Wheel Wheel Hover Unit Combat Antigrav System Utility Large Storage Unit Device Long-range Sensor Array Storage Large Storage Unit Processor Advanced Signal Interpreter Hackware Quantum Router Protection Experimental Powered Armor Artifact Microwarp Drive Weapon Makeshift Axe Energy Gun Improved EM Shotgun Energy Cannon Enhanced Nova Cannon Ballistic Gun Assault Rifle Ballistic Cannon Light Cannon Launcher Tiamat Missile Launcher Special Weapon Plasma Cutter Impact Weapon Core Stripper Slashing Weapon Makeshift Axe Piercing Weapon Heavy Pick Special Melee Weapon Advanced Datajack Build | -11 -10 -10 -10 -9 -8 -7 -7 -7 -7 -6 -6 -6 -6 -6 -5 -5 -5 -5 -5 -4 -4 -4 -4 -3 -3 -3 ------- Run | Yrd Mat Min Exi Min Mat Fac Low Zio Dee Pro Fac Low Low Dat Pro Fac Upp Upp War Pro Fac Arm Lab Res Qua Sec Slots Evolved 14 | . . . . . 4 2 . . . . 2 . . . . 2 . . . . 2 . . 2 . . Power 2 | . . . . . . . . . . . . . . . . 1 . . . . . . . 1 . . Propulsion 3 | . . . . . 1 . . . . . 1 . . . . . . . . . 1 . . . . . Utility 8 | . . . . . 2 2 . . . . 1 . . . . 1 . . . . 1 . . 1 . . Weapon 1 | . . . . . 1 . . . . . . . . . . . . . . . . . . . . . Parts Attached 606 | 2 19 5 11 9 46 59 . 20 14 7 46 7 3 4 4 71 7 4 19 4 29 53 10 36 61 56 Power 44 | . 1 2 . . 6 2 . 1 2 . 3 . . . . 9 1 . 2 . . 4 . 4 4 3 Engine 16 | . 1 1 . . 5 . . 1 1 . 3 . . . . 4 . . . . . . . . . . Core 11 | . . 1 . . 1 2 . . 1 . . . . . . 5 1 . . . . . . . . . Reactor 17 | . . . . . . . . . . . . . . . . . . . 2 . . 4 . 4 4 3 Propulsion 84 | 2 4 1 4 . 16 6 . . 2 2 9 2 . . 1 13 . . 1 . 1 8 . . 11 1 Treads 38 | 2 4 . 3 . 12 1 . . . . . . . . . . . . . . . 5 . . 10 1 Leg 3 | . . . . . . . . . . . . . . . . . . . . . . 3 . . . . Wheel 6 | . . 1 1 . 4 . . . . . . . . . . . . . . . . . . . . . Hover 37 | . . . . . . 5 . . 2 2 9 2 . . 1 13 . . 1 . 1 . . . 1 . Flight . | . . . . . . . . . . . . . . . . . . . . . . . . . . . Utility 266 | . 5 1 6 . 5 31 . 8 7 3 25 3 2 2 3 24 1 . 11 2 18 20 5 19 27 38 Device 169 | . . . 3 . 1 20 . 4 5 3 13 2 2 . 2 13 . . 8 1 14 20 2 14 19 23 Storage 16 | . 2 . 1 . . 3 . . . . 1 . . . . 1 . . . . 1 . 1 2 1 3 Processor 18 | . 1 . . . . 2 . 1 1 . 3 . . 1 1 1 . . . 1 . . . 1 1 4 Hackware 22 | . . . 2 . 2 3 . . . . 5 . . . . 6 . . . . 2 . 1 1 . . Protection 35 | . 2 1 . . 2 3 . 3 1 . 3 1 . 1 . 3 1 . 3 . 1 . 1 1 6 2 Artifact 6 | . . . . . . . . . . . . . . . . . . . . . . . . . . 6 Weapon 212 | . 9 1 1 9 19 20 . 11 3 2 9 2 1 2 . 25 5 4 5 2 10 21 5 13 19 14 Energy Gun 18 | . . . . . 2 . . . . . . . . . . 1 . . . . . 6 4 3 1 1 Energy Cannon 53 | . . . . 1 3 8 . 1 . 2 2 . . . . 4 . . . . 1 2 1 8 11 9 Ballistic Gun 30 | . 7 1 1 3 6 1 . 1 . . 1 . . . . 8 . 1 . . . . . . . . Ballistic Cannon 24 | . 1 . . . 1 4 . . . . 1 . . . . 5 . . 1 1 5 2 . 1 1 1 Launcher 50 | . . . . 3 4 4 . . 2 . 3 2 1 2 . 5 3 1 2 1 3 7 . 1 3 3 Special Weapon 7 | . . . . . . 1 . 1 . . 1 . . . . 1 . 1 2 . . . . . . . Impact Weapon 1 | . . . . . . . . . . . . . . . . . . . . . . . . . 1 . Slashing Weapon 16 | . . . . 2 3 2 . 3 1 . . . . . . . . . . . . 3 . . 2 . Piercing Weapon 11 | . . . . . . . . 5 . . 1 . . . . 1 2 1 . . . 1 . . . . Special Melee Weapon 2 | . 1 . . . . . . . . . . . . . . . . . . . 1 . . . . . Unidentified Prototypes 53 | . . . 1 . 3 3 . 2 2 . 3 1 . . . 2 . . 5 . 1 1 7 5 14 3 Corrupted Parts 1 | . . . . . . . . . . . . . . . . . . . 1 . . . . . . . System Corruption 11 | . . . . . . . . . . . . . . . . . . . 11 . . . . . . . Parts Lost 73 | . 1 1 1 . 8 4 1 . 9 3 8 1 2 7 . 13 . . 1 . 1 8 2 . . 2 Power 11 | . . . . . 2 . . . 2 . 2 . . 1 . 3 . . . . . 1 . . . . Propulsion 13 | . . 1 . . 3 . . . . . 2 . . 1 . 3 . . . . . 3 . . . . Utility 29 | . 1 . 1 . 1 2 1 . 6 2 3 . 1 3 . 2 . . . . 1 2 2 . . 1 Weapon 20 | . . . . . 2 2 . . 1 1 1 1 1 2 . 5 . . 1 . . 2 . . . 1 Highest Loss Streak 9 | . 1 1 1 . 2 1 1 . 9 2 3 1 1 7 . 6 . . 1 . 1 4 2 . . 2 To Critical Strikes 1 | . . . . . 1 . . . . . . . . . . . . . . . . . . . . . Average Slot Usage (%) 92 | . 99 99 99 100 95 97 99 99 91 92 95 98 91 78 71 92 94 95 94 88 94 86 82 84 79 71 Engine 4 | . 14 5 14 14 7 1 . 6 5 7 5 6 6 4 . 3 5 5 . . . . . . . . Core 2 | . . 8 . . 1 5 7 . . . . . . . . 5 5 5 2 . . . . . . . Reactor 2 | . . . . . . . . . . . . . . . . . . . 4 5 5 5 8 12 12 9 Treads 9 | . 27 25 14 14 21 15 . . . . . . . . . . . . . . . 6 15 13 12 8 Wheel 1 | . . 2 14 14 4 . . . . . . . . . . . . . . . . . . . . . Hover 12 | . . . . . . 7 23 23 22 23 23 25 25 24 21 25 27 27 27 27 30 10 . . . . Device 8 | . . . 9 14 6 8 6 3 7 15 4 12 12 9 12 5 11 11 14 14 13 13 16 12 13 14 Storage 7 | . 14 14 14 14 9 7 7 7 7 7 6 6 6 6 6 5 5 5 5 5 5 5 7 6 4 6 Processor 9 | . 9 9 . . . 7 15 15 16 17 12 12 10 8 18 11 11 11 11 12 15 15 12 11 11 6 Hackware 9 | . . . . . 16 17 7 4 . . 18 6 6 6 6 19 5 5 5 5 9 8 6 9 9 6 Protection 3 | . 4 4 4 . 2 2 7 13 8 . 2 5 6 6 . . 11 11 7 5 2 1 1 3 3 2 Energy Gun 1 | . . . . . 6 . . . . . . . . . . . . . . . . 5 9 2 . 5 Energy Cannon 2 | . . . . 13 4 7 . . . 5 5 . . . . 1 5 1 . . . 1 . 5 3 4 Ballistic Gun 3 | . 22 14 14 7 3 . . . . . 2 2 . . . 2 . . . . . . . . . . Ballistic Cannon 2 | . 5 14 14 1 . 4 . . . . 1 . . . . 4 . . . . 4 . . . . . Launcher 1 | . . . . 1 1 . 7 4 4 . 1 7 11 4 . . 2 3 4 4 2 1 . . . . Slashing Weapon 2 | . . . . 4 8 7 7 3 2 . . . . . . . . . . . . . 5 4 3 2 Piercing Weapon 2 | . . . . . . . . 7 15 15 7 6 6 6 6 4 2 4 5 5 5 3 . . . . Naked Turns . | . . . . . . . . . . . . . . . . . . . . . . . . . . . Heaviest Build 152 | 13 30 33 96 97 152 113 45 47 44 44 57 58 58 65 24 63 65 62 74 76 89 101 95 127 128 125 Greatest Support 255 | 40 40 40 10 10 64 64 48 48 48 48 62 58 58 58 32 70 64 64 77 77 90 235 235 235 255 255 Greatest Overweight (x) 10 | . . 3 9 9 10 3 . . 10 . 2 . . 1 2 4 1 . . . . 1 . . . 1 Average Overweight (x) . | . . . 7 9 3 . . . . . . . . . 1 . . . . . . . . . . . Largest Inventory Capacity 25 | 8 15 15 25 25 25 25 15 15 15 15 15 15 15 15 15 15 15 15 15 15 15 15 15 15 15 15 Average Capacity 17 | 8 11 15 23 25 25 21 15 15 15 15 15 15 15 15 15 15 15 15 15 15 15 15 15 15 15 14 Most Carried 25 | 6 13 15 25 25 25 25 15 15 15 15 15 15 15 15 15 15 15 15 15 15 15 15 15 15 15 15 Average Carried 16 | 6 10 14 22 24 24 21 14 14 14 13 13 14 15 14 13 14 14 14 14 15 14 14 14 14 14 14 Final Capacity 25 | 8 15 15 25 25 25 15 15 15 15 15 15 15 15 15 15 15 15 15 15 15 15 15 15 15 15 15 Final Carried 25 | 6 13 15 25 25 25 15 15 15 14 13 15 15 15 15 15 15 15 15 15 15 15 15 15 15 15 14 Class Distribution -------------------- 41% | Hacker-Mutant 23% | Mutant 10% | Machinist-Mutant 8% | Scavenger-Mutant 4% | Wizard-Mutant 3% | Assassin 3% | Derelict-Mutant Dominant Class ---------------- Mutant | -10/Materials Mutant | -10/Mines Mutant | -10/Exiles Mutant | -9/Mines Scavenger-Mutant | -8/Materials Hacker-Mutant | -7/Factory Mutant | -7/Lower Caves Derelict-Mutant | -7/Zion Scavenger-Mutant | -7/Deep Caves Scavenger-Mutant | -6/Proximity Caves Hacker-Mutant | -6/Factory Mutant | -6/Lower Caves Mutant | -6/Lower Caves Mutant | -6/Data Miner Assassin | -5/Proximity Caves Wizard-Mutant | -5/Factory Machinist-Mutant | -5/Upper Caves Machinist-Mutant | -5/Upper Caves Machinist-Mutant | -5/Warlord Machinist-Mutant | -4/Proximity Caves Hacker-Mutant | -4/Factory Hacker-Mutant | -4/Armory Hacker-Mutant | -4/Lab Hacker-Mutant | -3/Research Hacker-Mutant | -3/Quarantine Hacker-Mutant | -3/Section 7 Resources | -11 -10 -10 -10 -9 -8 -7 -7 -7 -7 -6 -6 -6 -6 -6 -5 -5 -5 -5 -5 -4 -4 -4 -4 -3 -3 -3 ----------- Run | Yrd Mat Min Exi Min Mat Fac Low Zio Dee Pro Fac Low Low Dat Pro Fac Upp Upp War Pro Fac Arm Lab Res Qua Sec Matter Collected 14197 | 200 586 231 396 158 896 1044 289 125 303 163 540 396 427 122 125 1773 744 397 495 260 1162 863 78 583 689 1152 Remotely 1365 | . . . . . . . . . . . . 83 73 . . . . . 374 . . 174 . 125 . 536 Salvage Created 23205 | . 666 190 325 142 2460 1361 194 . 170 74 934 315 412 122 63 1514 688 469 541 565 1043 4424 78 2782 1068 2605 Parts 1072 | . 58 13 45 18 151 87 5 . 11 3 47 21 16 3 1 72 24 14 26 20 65 162 7 92 32 79 Haulers Intercepted 20 | . 2 . . . 5 4 . . . . 2 . . . . 3 . . . . . . . 3 . 1 Recyclers Shooed 6 | . 1 . . . 2 . . . . . 1 . . . . . . . . . . . . 2 . . Parts Field Recycled . | . . . . . . . . . . . . . . . . . . . . . . . . . . . Retrieved Matter . | . . . . . . . . . . . . . . . . . . . . . . . . . . . Parts Self-Destructed 44 | . . . . . . . 5 . . 3 . 11 8 . 1 . 5 6 . 5 . . . . . . Prevented 27 | . . . . . . . . . . . . . . . . . 10 3 . 14 . . . . . . Kills | -11 -10 -10 -10 -9 -8 -7 -7 -7 -7 -6 -6 -6 -6 -6 -5 -5 -5 -5 -5 -4 -4 -4 -4 -3 -3 -3 ------- Run | Yrd Mat Min Exi Min Mat Fac Low Zio Dee Pro Fac Low Low Dat Pro Fac Upp Upp War Pro Fac Arm Lab Res Qua Sec Combat Hostiles Destroyed 410 | . 15 8 1 13 36 25 5 . 6 2 8 13 9 2 . 27 12 8 20 12 25 72 1 29 18 43 Melee 19 | . . . . . . . . . 2 . 3 1 2 . . 1 1 . . 1 . 1 1 1 5 . Guns 68 | . 14 3 1 1 19 . . . . . . . . . . 7 . . . . . 13 . . . 10 Cannons 75 | . 1 5 . . 11 13 . . . 1 . . . . . 4 2 . . 1 7 5 . 13 2 10 AOE 203 | . . . . 12 5 10 5 . 4 1 5 12 7 2 . 15 7 8 20 7 18 36 . 2 8 19 Classes Destroyed 34 | . 8 1 1 . 6 1 1 . 1 . . 1 2 . . 2 1 . 2 . . 2 . . 3 2 Worker 17 | . . . . . 6 3 . . . . . . . . . 3 . . . . 4 . . . . 1 Builder 14 | . 1 . . 1 3 1 . . . . 5 . . . . 1 . . . . 1 . . 1 . . Tunneler 3 | . 1 . . 1 1 . . . . . . . . . . . . . . . . . . . . . Hauler 20 | . 2 . . . 5 4 . . . . 2 . . . . 3 . . . . . . . 3 . 1 Recycler 13 | . 1 . . . 2 3 . . . . 2 . . . . 1 . . . . 1 . . 3 . . Carrier 1 | . . . . . . . . . . . . . . . . . . . . . . . . . 1 . Minesweeper 3 | . . . . . . . 1 . . . . 1 . . 1 . . . . . . . . . . . Mechanic 4 | . . . . . . . . . . . . . . . . 1 . . . . . 1 . . 1 1 Operator 7 | . 2 . . . 1 2 . . . . . . . . . . . . . . . 1 . . 1 . Watcher 24 | . 3 . . . 5 2 . . . . 3 . . . . 3 . . . . 3 2 . . 1 2 Swarmer 108 | . 9 3 . 12 5 7 3 . . 1 4 6 7 . . 4 5 6 3 6 18 5 . . 4 . Cutter 3 | . . . . . . . . . . . . . . . . 3 . . . . . . . . . . Saboteur 4 | . . . . . . . . . . . . . . . . . . . 2 . . 2 . . . . Grunt 145 | . 6 4 . 1 18 6 2 . . 1 3 6 . . . 11 5 2 10 3 5 23 . 8 5 26 Brawler 17 | . . . . . 1 . . . . . . . . . . . 1 . 1 . . 11 . 2 . 1 Duelist 16 | . . . . . 3 . . . . . . . . . . . . . 1 . . 10 . . . 2 Protector 8 | . . . . . . . . . . . . . . . . . . . 3 . . 4 . . . 1 Sentry 18 | . . . . . 7 2 . . . . . 1 . . . . 1 . . 1 1 1 . 2 . 2 Demolisher 1 | . . . . . . . . . . . . . . . . . . . . . . 1 . . . . Specialist 6 | . . . . . 1 . . . . . . . . . . 2 . . . . . 3 . . . . Hunter 20 | . . . . . 1 3 . . . . . . . . . 4 . . . 2 . 4 . 6 . . Programmer 35 | . . . . . . 7 . . . . 1 . . . . 3 . . 1 . 1 8 . 7 5 2 Heavy 1 | . . . . . . . . . . . . . . . . . . . . . . 1 . . . . S7 Guard 1 | . . . . . . . . . . . . . . . . . . . . . . . . . . 1 Enhanced Grunt 2 | . . . . . . . . . . . . . . 2 . . . . . . . . . . . . Tracker 4 | . . . . . . . . . . . . . . . . . . . . . . . . 2 1 1 Combat Programmer 4 | . . . . . . . . . . . . . . . . . . . . . . . . 2 1 1 Striker 4 | . . . . . . . . . . . . . . . . . . . . . . . . . . 4 Executioner 2 | . . . . . . . . . . . . . . . . . . . . . . . . . . 2 Alpha 7 1 | . . . . . . . . . . . . . . . . . . . . . . . . . 1 . Fortress 1 | . . . . . . . . . . . . . . . . . . . . . . . . . 1 . Zionite 5 | . . . 5 . . . . . . . . . . . . . . . . . . . . . . . Z-Technician 4 | . . . . . . . . . 4 . . . . . . . . . . . . . . . . . Z-Light 1 | . . . . . . . . . 1 . . . . . . . . . . . . . . . . . Decomposer 5 | . . . . . . . . . . . . 1 . . . . 4 . . . . . . . . . Packrat 7 | . . . . . . . . . . . . . 3 . . . . 4 . . . . . . . . Samaritan 5 | . . . . . . . . . . . . . . . . . 3 2 . . . . . . . . Tinkerer 1 | . . . . . . . . . . . . 1 . . . . . . . . . . . . . . Master Thief 1 | . . . . . . . . . . . . . 1 . . . . . . . . . . . . . Assembled 6 | . . 1 1 . . . . . 4 . . . . . . . . . . . . . . . . . Mutant 1 | . . . . . . . . . . . . . 1 . . . . . . . . . . . . . Best Kill Streak 21 | . 3 3 3 5 6 9 3 . 4 1 8 10 4 3 1 5 5 4 9 5 7 21 1 9 7 17 Combat Bots Only 19 | . 3 3 1 4 4 9 3 . 3 1 4 10 4 2 . 5 5 4 9 5 5 19 1 8 5 16 Max Kills in Single Turn 5 | . 2 1 3 3 2 2 2 . 2 1 4 4 4 1 1 2 2 3 5 2 3 5 1 3 2 5 Gunslinging 1 | . . . . . . . . . . . . . . . . . . . . . . 1 . . . 1 Exploded 5 | . . . . 3 2 2 2 . 2 1 2 4 4 1 . 2 2 3 5 2 3 4 . 2 2 4 Melee 1 | . . . . . . . . . 1 . 1 1 1 . . 1 1 . . 1 . 1 1 1 1 . Uniques/NPCs Destroyed 7 | . . . 4 . . . . . 1 . . . . 1 . . . . . . . . 1 . . . EX-HEX (-10/Exiles) EX-BIN (-10/Exiles) 8R-AWN (-10/Exiles) EX-DEC (-10/Exiles) Z-Imprinter (-7/Deep Caves) Data Miner (-6/Data Miner) A5 (-4/Lab) Combat | -11 -10 -10 -10 -9 -8 -7 -7 -7 -7 -6 -6 -6 -6 -6 -5 -5 -5 -5 -5 -4 -4 -4 -4 -3 -3 -3 -------- Run | Yrd Mat Min Exi Min Mat Fac Low Zio Dee Pro Fac Low Low Dat Pro Fac Upp Upp War Pro Fac Arm Lab Res Qua Sec Hostile Shots Fired 2411 | . 77 44 7 29 199 177 11 . 71 52 124 35 23 27 1 240 17 3 13 9 142 279 33 113 167 518 Missed 771 | . 18 12 1 8 53 71 5 . 13 26 55 17 4 8 . 76 10 2 8 4 70 84 12 32 34 148 Damage Taken 26374 | . 520 346 242 185 1990 1420 98 . 1889 537 1461 321 319 887 21 3460 126 13 63 22 1239 3384 353 1265 1708 4505 Core 4300 | . 68 60 82 18 284 134 9 . 417 121 266 69 9 165 . 630 45 . 7 . 183 496 13 5 77 1142 Absorbed by Shields 5879 | . . . . 74 211 . . . . . . . . . . 20 . . 62 20 368 1309 189 398 1499 1729 Reduced by Siege Mode 652 | . . . . . . . . . . . . . . . . . . . . . . 248 . 171 164 69 Redirected to Shielding 645 | . . . . . . . . . 254 . . . . . . 99 28 8 . 9 135 112 . . . . Ignored by Resistances 3391 | . . . . . . . . . . . . . . . . . . . . . . . . . . 3391 Regen/Repaired (Parts) 3077 | . 80 . . . 459 . . . . . 610 . . . . 684 . . 71 . . . . . 1088 85 Core Remaining (%) 41 | 100 . . . 8 48 . . . . 2 . . . . 40 . . . . 31 . . 64 . . . Volleys Fired 1107 | . 66 23 48 15 133 94 9 . 7 21 32 10 7 5 . 95 29 10 12 21 47 115 1 115 58 134 Largest 3 | . 2 2 2 2 2 2 1 . 1 1 2 2 2 2 . 3 2 1 1 1 1 2 1 2 1 2 Hottest 200 | . 55 55 55 98 98 138 39 . 39 69 138 78 78 78 . 171 127 46 46 66 66 130 80 150 120 200 Shots Fired 1466 | . 129 46 56 18 220 118 9 . 7 21 36 18 13 10 . 135 30 10 12 21 47 142 2 118 59 189 Gun 584 | . 122 23 49 8 143 . . . . . 4 . . . . 66 . . . . . 61 2 15 . 91 Cannon 611 | . 7 23 7 3 72 105 . . . 17 23 . . . . 54 9 . . 1 32 29 . 99 44 86 Launcher 271 | . . . . 7 5 13 9 . 7 4 9 18 13 10 . 15 21 10 12 20 15 52 . 4 15 12 Special . | . . . . . . . . . . . . . . . . . . . . . . . . . . . Kinetic 540 | . 129 46 56 8 86 58 . . . . 8 . . . . 88 . . . 1 32 15 . 1 . 12 Thermal 417 | . . . . 3 60 29 . . . 15 19 . . . . 32 . . . . . 75 1 67 44 72 Explosive 184 | . . . . 7 5 13 9 . 7 4 3 18 13 10 . 15 7 10 12 4 7 9 . 4 15 12 Electromagnetic 222 | . . . . . 69 18 . . . 2 6 . . . . . 23 . . 16 8 33 1 46 . . Slashing 93 | . . . . . . . . . . . . . . . . . . . . . . . . . . 93 Entropic 10 | . . . . . . . . . . . . . . . . . . . . . . 10 . . . . Robot Hit Streak 45 | . 6 7 5 10 19 5 . . 2 1 2 3 . . . 8 4 . 7 8 6 13 . 45 14 29 Robot Miss Streak 7 | . 4 3 4 1 7 6 1 . . 3 3 . 1 . . 4 1 . . . 2 3 . 1 3 3 Penetration Max 2 | . . . 2 . 2 1 . . . . . . . . . . . . . . 1 . . . . 1 Secondary Targets 8 | . 2 . . . 1 . . . . . . . . . . . . . . . . 4 . . . 1 Max Gunslinging Chain 1 | . 1 . . . 1 . . . . . . . . . . . . . . . . 1 . . . 1 Autonomous 12 | . . . . . 12 . . . . . . . . . . . . . . . . . . . . . Shots Hit Robots 927 | . 72 29 28 12 150 75 7 . 13 1 35 9 10 1 6 99 21 8 3 2 31 79 12 75 43 106 Core Hits 949 | . 34 9 15 14 92 51 11 . 20 3 34 34 15 16 1 73 28 15 63 18 41 160 5 50 36 111 Critical Kills 43 | . 1 . 5 1 7 1 . . . . 1 . . . . 2 . . . 1 8 3 . 7 2 4 Critical Parts Destroyed 33 | . 1 . 5 3 9 . . . . . . . . . . 2 . . . . 8 5 . . . . Critical Strikes 112 | . 3 . 10 4 17 4 . . 2 . 6 2 1 1 2 9 1 1 . 1 19 9 1 10 4 5 Meltdown 15 | . . . . . 1 1 . . . . . . . . . . . . . . . . . 7 2 4 Destroy 62 | . 2 . 10 4 16 . . . . . 1 . . . . 4 . . . 1 16 8 . . . . Blast 4 | . 1 . . . . 2 . . . . . . . . . 1 . . . . . . . . . . Sever 9 | . . . . . . 1 . . . . . . . . . . . . . . . 1 1 3 2 1 Impale 22 | . . . . . . . . . 2 . 5 2 1 1 2 4 1 1 . . 3 . . . . . Melee Attacks 517 | . 3 . . 6 24 54 8 2 32 4 70 11 14 1 6 89 14 12 12 1 22 22 39 21 38 12 Kinetic 1 | . . . . . . . . . . . . . . . . . . . . . . . . . 1 . Impact . | . . . . . . . . . . . . . . . . . . . . . . . . . . . Slashing 216 | . . . . 6 24 54 8 . 5 . . . . . . . . . . . . 10 39 21 37 12 Piercing 297 | . . . . . . . . 2 27 4 70 11 14 1 6 89 14 12 12 1 22 12 . . . . Sneak Attacks 80 | . 3 . . 2 7 10 1 . 4 . 5 2 3 1 2 9 10 8 . . 5 . . 7 . 1 Combat Hostiles . | . . . . . . . . . . . . . . . . . . . . . . . . . . . Follow-up Attacks 1 | . . . . . . . . . 1 . . . . . . . . . . . . . . . . . Damage Inflicted 71567 | . 898 453 559 1097 4846 3846 1240 . 923 442 2315 1934 1121 1620 371 5566 2067 1785 3539 1148 2234 11722 756 5864 4440 10781 Guns 9590 | . 823 218 480 106 1977 . . . . . 6 . . . . 756 . . . . . 1144 . 206 . 3874 Cannons 12422 | . 75 217 79 62 1691 1695 . . . 26 114 . . . . 615 192 . . 13 426 455 . 3568 846 2348 Explosions 37544 | . . . . 791 625 1005 836 . 484 416 1001 1371 627 1560 . 2598 1028 1273 3539 1102 1312 9800 . 1125 2679 4372 Melee 11902 | . . . . 138 553 1146 404 . 439 . 1194 563 494 60 371 1550 847 512 . 33 496 279 756 965 915 187 Ramming 109 | . . 18 . . . . . . . . . . . . . 47 . . . . . 44 . . . . Kinetic 6974 | . 898 435 559 106 1925 836 . . . . 66 . . . . 963 . . . 13 426 216 . 46 . 485 Thermal 9244 | . . . . 62 1089 482 . . . . 54 . . . . 408 . . . . 146 2098 . 2459 846 1600 Explosive 26793 | . . . . 791 373 1005 836 . 484 416 631 1371 627 1560 . 2598 795 1273 3539 600 731 1020 . 1092 2679 4372 Electromagnetic 8098 | . . . . . 906 377 . . . 26 370 . . . . . 425 . . 502 435 3755 . 1302 . . Impact . | . . . . . . . . . . . . . . . . . . . . . . . . . . . Slashing 9429 | . . . . 138 553 1146 404 . 47 . . . . . . . . . . . . 181 756 965 915 4324 Piercing 6610 | . . . . . . . . . 392 . 1194 563 494 60 371 1550 847 512 . 33 496 98 . . . . Entropic 4310 | . . . . . . . . . . . . . . . . . . . . . . 4310 . . . . Highest Corruption 18 | . 2 2 2 2 . 9 9 9 . . 4 4 5 5 5 6 . . 11 . 3 14 18 2 16 16 Average Corruption 5 | . 2 2 2 2 . 4 9 9 . . 4 4 4 5 5 5 . . 11 . 2 6 15 1 9 16 Corruption Purged 6 | . . . . . . . . . . . . . . . . 6 . . . . . . . . . . Corruption Blocked . | . . . . . . . . . . . . . . . . . . . . . . . . . . . Effects 420 | . 15 12 19 6 . 76 14 3 . . 7 14 13 3 28 38 . . . . 1 36 26 4 39 66 Message Errors 105 | . 7 2 6 2 . 23 4 . . . 4 3 2 . 5 5 . . . . . 11 7 1 12 11 Matter Fused 89 | . 3 4 2 1 . 16 4 1 . . 1 1 5 . 11 8 . . . . . 7 4 . 11 10 Heat Flow Errors 48 | . 1 . 2 . . 10 1 1 . . 1 . 2 1 4 4 . . . . 1 3 7 . 1 9 Energy Discharges 50 | . 2 3 4 1 . 6 2 1 . . . 2 . 2 4 7 . . . . . 3 4 . 5 4 Parts Rejected 4 | . . . . . . . . . . . . . . . . 1 . . . . . . . . 1 2 Parts Fused 3 | . . . . . . 1 . . . . . . . . . . . . . . . . 1 . 1 . Data Loss (minor) 60 | . 1 2 4 1 . 12 2 . . . 1 4 1 . 3 8 . . . . . 6 2 . 4 9 Data Loss (major) 18 | . . 1 . . . 1 1 . . . . 1 2 . . 3 . . . . . 1 . 3 1 4 Misfires 17 | . . . 1 . . 4 . . . . . 2 1 . . 1 . . . . . 3 1 . 1 3 Alerts 6 | . 1 . . 1 . 1 . . . . . 1 . . 1 . . . . . . . . . 1 . Misdirections 6 | . . . . . . . . . . . . . . . . . . . . . . . . . 1 5 Weapon Failures 14 | . . . . . . 2 . . . . . . . . . 1 . . . . . 2 . . . 9 Overload Shots . | . . . . . . . . . . . . . . . . . . . . . . . . . . . Overflow Damage 2914 | . . 9 . 99 70 271 159 . 17 13 88 232 62 66 124 171 455 259 74 7 88 209 10 156 142 133 Projectiles 320 | . . 9 . . 7 78 . . . . 13 . . . . 15 5 . . . . 29 . 16 92 56 Explosions 892 | . . . . 31 . 74 32 . 4 13 21 13 51 6 . 37 23 115 74 7 74 157 . 33 50 77 Melee 1702 | . . . . 68 63 119 127 . 13 . 54 219 11 60 124 119 427 144 . . 14 23 10 107 . . Knockbacks 28 | . . 3 1 . 1 11 . . . . . . . . . 3 . . . . 4 3 . . . 2 Impact . | . . . . . . . . . . . . . . . . . . . . . . . . . . . Kinetic 27 | . . 3 1 . 1 10 . . . . . . . . . 3 . . . . 4 3 . . . 2 Secondary 1 | . . . . . . 1 . . . . . . . . . . . . . . . . . . . . Self-Inflicted Damage 1668 | . . . . 72 66 157 27 . 128 49 102 122 116 . . 47 21 . 28 . . 505 . . 101 127 Shots 51 | . . . . 2 2 3 2 . 3 2 4 4 4 . . . 2 . 1 . . 17 . . 2 3 Rammed 6 | . 1 3 . . . . . . . . . . . . . . . . . . . 2 . . . . Targets Rammed 6 | . 1 3 . . . . . . . . . . . . . . . . . . . 2 . . . . Kicked . | . . . . . . . . . . . . . . . . . . . . . . . . . . . Crushed . | . . . . . . . . . . . . . . . . . . . . . . . . . . . Highest Temperature 392 | . 139 63 201 133 276 330 258 183 177 121 166 75 125 283 202 392 222 24 70 46 341 312 268 235 265 367 Average Temperature 66 | . 17 21 63 80 73 88 67 14 28 53 60 25 34 100 84 73 46 11 25 21 93 97 109 65 64 131 Received Heat Transfer 4274 | . 84 126 . 28 871 174 . . 517 177 282 57 . . . 333 9 . 22 . 180 308 . 105 77 924 Effects 16 | . . . . . 5 5 . . . . . . . . . 2 . . . . . 4 . . . . Energy Bleed 3 | . . . . . . 1 . . . . . . . . . 1 . . . . . 1 . . . . Interference 13 | . . . . . 5 4 . . . . . . . . . 1 . . . . . 3 . . . . Siege Activations 15 | . . . . . . . . . . . . . . . . . . . . . . 5 . 4 5 1 Total Turns 343 | . . . . . . . . . . . . . . . . . . . . . . 104 . 115 94 30 Longest Duration 44 | . . . . . . . . . . . . . . . . . . . . . . 41 . 44 32 30 Robots Corrupted 32 | . . . . . . 1 . . . . . . . . . . 2 . . 3 . 19 . 7 . . Combat Hostiles 29 | . . . . . . 1 . . . . . . . . . . 2 . . 3 . 17 . 6 . . Parts Fried 61 | . . . . . 3 2 . . . . . . . . . . 4 . . 6 2 30 . 14 . . Impact Corruptions 2 | . . . . . . . . . . . . . . . . . . . . . . 2 . . . . Robots Melted 15 | . . . . . 1 1 . . . . . . . . . . . . . . . . . 7 2 4 Combat Hostiles 15 | . . . . . 1 1 . . . . . . . . . . . . . . . . . 7 2 4 Parts Melted 39 | . . . . . 2 . . . . . . . . . . 2 . . . . 1 11 . 14 2 7 Heat Transferred 9074 | . . . . 111 1619 785 . . . . 74 . . . . 518 . . . . 200 1943 . 1826 629 1369 Parts Sabotaged . | . . . . . . . . . . . . . . . . . . . . . . . . . . . Parts Stolen 2 | . . . . . . . 1 . . . . . 1 . . . . . . . . . . . . . Parts Stripped 18 | . . . . . . . . . . . . . . . . . . . . . . . . . 18 . Power Chain Reactions 13 | . . . . . 3 . . . . . . . . . . . . . . . . 9 . 1 . . Alert | -11 -10 -10 -10 -9 -8 -7 -7 -7 -7 -6 -6 -6 -6 -6 -5 -5 -5 -5 -5 -4 -4 -4 -4 -3 -3 -3 ------- Run | Yrd Mat Min Exi Min Mat Fac Low Zio Dee Pro Fac Low Low Dat Pro Fac Upp Upp War Pro Fac Arm Lab Res Qua Sec Peak Influence 2669 | . 388 194 . 264 748 696 . . . . 454 . . . . 763 . . . . 1089 2669 . 624 609 2474 Initial 508 | . . 94 . . 71 325 . . . . 88 . . . . 2 . . . . 88 508 . . 351 229 Average 349 | . 174 72 . 165 416 224 . . . . 219 . . . . 223 . . . . 633 1473 . 201 260 813 Maximum Alert Level 5 | . 1 . . 1 3 2 . . . . 2 . . . . 3 . . . . 3 5 . 2 2 5 Low Security (%) 44 | 100 47 100 . 47 17 61 . . . . 51 . . . . 54 . . . . 12 . . 55 38 17 Level 1 25 | . 52 . . 52 21 16 . . . . 42 . . . . 21 . . . . 15 . . 23 38 37 Level 2 19 | . . . . . 45 21 . . . . 6 . . . . 21 . . . . 22 11 . 20 23 15 Level 3 5 | . . . . . 14 . . . . . . . . . . 2 . . . . 49 13 . . . . Level 4 1 | . . . . . . . . . . . . . . . . . . . . . . 31 . . . . Level 5 . | . . . . . . . . . . . . . . . . . . . . . . 17 . . . . High Security 1 | . . . . . . . . . . . . . . . . . . . . . . 26 . . . . Max Security 1 | . . . . . . . . . . . . . . . . . . . . . . . . . . 29 Squads Dispatched 106 | . 4 . . . 10 13 . . . . 7 . . . . 14 . . . . 4 15 . 7 8 24 Investigation 16 | . 2 . . . 3 4 . . . . 2 . . . . 3 . . . . 2 . . . . . Extermination 18 | . . . . . . 5 . . . . 3 . . . . 2 . . . . 1 3 . 1 2 1 Reinforcement 24 | . 2 . . . 3 2 . . . . 2 . . . . 8 . . . . 1 2 . 2 1 1 Assault 35 | . . . . . 1 2 . . . . . . . . . 1 . . . . . 10 . . 1 20 Garrison 3 | . . . . . 3 . . . . . . . . . . . . . . . . . . . . . Intercept 10 | . . . . . . . . . . . . . . . . . . . . . . . . 4 4 2 Searches Triggered 1 | . . . . . . . . . . . 1 . . . . . . . . . . . . . . . Construction Impeded 3 | . . . . . 1 . . . . . 2 . . . . . . . . . . . . . . . Haulers Reinforced 2 | . . . . . . . . . . . . . . . . 1 . . . . . . . 1 . . Active Scanning Responses . | . . . . . . . . . . . . . . . . . . . . . . . . . . . Cargo Convoy Interrupts . | . . . . . . . . . . . . . . . . . . . . . . . . . . . Stealth | -11 -10 -10 -10 -9 -8 -7 -7 -7 -7 -6 -6 -6 -6 -6 -5 -5 -5 -5 -5 -4 -4 -4 -4 -3 -3 -3 --------- Run | Yrd Mat Min Exi Min Mat Fac Low Zio Dee Pro Fac Low Low Dat Pro Fac Upp Upp War Pro Fac Arm Lab Res Qua Sec Distress Signals 18 | . 1 . . . 3 2 . . . . 2 . . . . . . 1 1 . . 4 . 2 . 2 Communications Jammed 7 | . . . . . . . . . . . . . . . . 3 . . . . . . . 1 3 . Distress Signals 7 | . . . . . . . . . . . . . . . . 3 . . . . . . . 1 3 . Times Spotted 710 | . 33 8 23 15 56 39 7 . 6 24 38 10 3 5 1 65 14 3 21 8 31 98 1 32 30 139 Peak Tracking Total 25 | . 5 3 12 4 4 4 3 . 3 11 5 7 4 4 1 7 7 2 12 3 9 16 1 5 6 25 Tactical Retreats 77 | . 8 . 3 2 3 2 . . . 9 13 . . . 1 15 5 1 . 2 3 5 . 1 1 3 Traps | -11 -10 -10 -10 -9 -8 -7 -7 -7 -7 -6 -6 -6 -6 -6 -5 -5 -5 -5 -5 -4 -4 -4 -4 -3 -3 -3 ------- Run | Yrd Mat Min Exi Min Mat Fac Low Zio Dee Pro Fac Low Low Dat Pro Fac Upp Upp War Pro Fac Arm Lab Res Qua Sec Traps Triggered 18 | . 4 . . . . 4 . . . . 2 . . . . . . . . . 4 . . 1 3 . Indirectly . | . . . . . . . . . . . . . . . . . . . . . . . . . . . Trap Hack Attempts 5 | . 5 . . . . . . . . . . . . . . . . . . . . . . . . . Triggered 1 | . 1 . . . . . . . . . . . . . . . . . . . . . . . . . Disarmed . | . . . . . . . . . . . . . . . . . . . . . . . . . . . Reprogrammed 18 | . 6 . . . 5 . . . . . . . . . . 4 . . . . . . . 3 . . Reused 10 | . 4 . . . 3 . . . . . . . . . . 2 . . . . . . . 1 . . Traps Extracted . | . . . . . . . . . . . . . . . . . . . . . . . . . . . Installed . | . . . . . . . . . . . . . . . . . . . . . . . . . . . Triggered 22 | . 4 . . . 3 . . . . . . . . . . 2 . 1 9 . . 2 . 1 . . Machines | -11 -10 -10 -10 -9 -8 -7 -7 -7 -7 -6 -6 -6 -6 -6 -5 -5 -5 -5 -5 -4 -4 -4 -4 -3 -3 -3 ---------- Run | Yrd Mat Min Exi Min Mat Fac Low Zio Dee Pro Fac Low Low Dat Pro Fac Upp Upp War Pro Fac Arm Lab Res Qua Sec Machines Disabled 98 | . . . 9 . 6 9 . . 2 . 3 4 1 1 . 7 . 1 . . 8 19 1 3 8 16 Max in Single Turn 7 | . . . 1 . 1 2 . . 1 . 1 3 1 1 . 1 . 1 . . 7 3 1 1 1 3 Garrison Access 10 | . . . . . . 3 . . . . 3 . . . . 1 . . . . 1 . . 1 1 . Machines Repaired . | . . . . . . . . . . . . . . . . . . . . . . . . . . . Machines Dismantled 3 | . . . . . . . . 3 . . . . . . . . . . . . . . . . . . Machines Sabotaged . | . . . . . . . . . . . . . . . . . . . . . . . . . . . Overloaded Fab Kills . | . . . . . . . . . . . . . . . . . . . . . . . . . . . Hacking | -11 -10 -10 -10 -9 -8 -7 -7 -7 -7 -6 -6 -6 -6 -6 -5 -5 -5 -5 -5 -4 -4 -4 -4 -3 -3 -3 --------- Run | Yrd Mat Min Exi Min Mat Fac Low Zio Dee Pro Fac Low Low Dat Pro Fac Upp Upp War Pro Fac Arm Lab Res Qua Sec Machines Accessed 129 | . 9 . 3 1 10 19 . 1 . . 18 1 1 4 1 22 . 1 4 . 5 1 2 8 12 6 Terminals 65 | . 6 . . 1 6 11 . . . . 9 . . . 1 11 . . . . . 1 . 5 8 6 Fabricators 11 | . . . . . . 4 . . . . 1 . . . . 3 . . . . 2 . . 1 . . Repair Stations 12 | . 1 . . . 1 . . . . . 2 . . . . 4 . . . . 2 . . . 2 . Recycling Units 10 | . 2 . . . 2 2 . . . . 2 . . . . 1 . . . . . . . 1 . . Scanalyzers 5 | . . . . . 1 . . . . . 1 . . . . 2 . . . . . . . . 1 . Garrison Access 9 | . . . . . . 2 . . . . 3 . . . . 1 . . . . 1 . . 1 1 . Total Hacks 513 | . 25 . 16 2 55 75 . 4 . . 68 1 1 28 1 113 . 1 8 . 12 3 7 29 39 25 Successful 336 | . 12 . 16 1 34 38 . 4 . . 47 1 1 28 1 78 . 1 8 . 4 1 7 15 25 14 Failed 177 | . 13 . . 1 21 37 . . . . 21 . . . . 35 . . . . 8 2 . 14 14 11 Catastrophic 27 | . 1 . . . 1 8 . . . . 2 . . . . 7 . . . . 2 . . 1 5 . Database Lockouts . | . . . . . . . . . . . . . . . . . . . . . . . . . . . Manual 158 | . 8 . 1 . 19 32 . . . . 22 . . . . 37 . . 1 . 1 1 2 15 8 11 Terminals 262 | . 18 . . 2 31 49 . . . . 36 . . . 1 55 . . . . . 3 . 20 22 25 Fabricators 44 | . . . . . . 12 . . . . 3 . . . . 20 . . . . 5 . . 4 . . Repair Stations 66 | . 2 . . . 9 . . . . . 15 . . . . 26 . . . . 5 . . . 9 . Recycling Units 33 | . 5 . . . 4 11 . . . . 7 . . . . 3 . . . . . . . 3 . . Scanalyzers 28 | . . . . . 11 . . . . . 3 . . . . 8 . . . . . . . . 6 . Garrison Access 14 | . . . . . . 3 . . . . 4 . . . . 1 . . . . 2 . . 2 2 . Terminal Hacks 174 | . 5 . 16 1 12 19 . 4 . . 18 1 1 28 1 23 . 1 8 . . 1 7 8 11 9 Record 42 | . . . 15 . . . . . . . . . . 11 1 . . 1 3 . . . 7 . 4 . Part Schematic 18 | . . . . . . 1 . 4 . . . . . 10 . 3 . . . . . . . . . . Robot Schematic 4 | . . . . . . . . . . . . . . 4 . . . . . . . . . . . . Robot Analysis 6 | . 1 . . . 1 1 . . . . 1 . . . . 1 . . . . . . . . . 1 Prototype ID Bank 12 | . 1 . . . . 2 . . . . 1 . . 3 . . . . 4 . . . . . . 1 Open Door 7 | . . . . . . . . . . . . 1 1 . . 1 . . 1 . . . . 1 1 1 Level Access Points 3 | . . . . . 1 . . . . . . . . . . 1 . . . . . . . . . 1 Branch Access Points 5 | . . . . . 1 1 . . . . 1 . . . . 1 . . . . . . . 1 . . Machine Index 1 | . . . . . . . . . . . . . . . . 1 . . . . . . . . . . Terminal Index 1 | . . . . . . 1 . . . . . . . . . . . . . . . . . . . . Fabricator Index 2 | . . . . . . 1 . . . . . . . . . . . . . . . . . 1 . . Recycling Unit Index 1 | . . . . . . 1 . . . . . . . . . . . . . . . . . . . . Scanalyzer Index 1 | . . . . . . 1 . . . . . . . . . . . . . . . . . . . . Alert Level 9 | . . . . . 1 2 . . . . 2 . . . . 2 . . . . . . . 1 1 . Unreport Threat 11 | . . . . . 1 4 . . . . . . . . . 2 . . . . . . . . 3 1 Locate Traps 11 | . 1 . . . 2 1 . . . . 2 . . . . 3 . . . . . . . 1 . 1 Reprogram Traps 4 | . 1 . . . 1 . . . . . . . . . . 1 . . . . . . . 1 . . Dispatch Records 1 | . . . . . . . . . . . 1 . . . . . . . . . . . . . . . Transport Status 1 | . . . . . . 1 . . . . . . . . . . . . . . . . . . . . Recall Investigation 2 | . . . . . . 1 . . . . 1 . . . . . . . . . . . . . . . Recall Extermination 1 | . . . . . . . . . . . 1 . . . . . . . . . . . . . . . Recall Reinforcements 1 | . . . . . . . . . . . . . . . . 1 . . . . . . . . . . Hauler Manifests 2 | . 1 . . . 1 . . . . . . . . . . . . . . . . . . . . . Registered Components 4 | . . . . . 1 . . . . . 1 . . . . 1 . . . . . . . . . 1 Registered Prototypes 3 | . . . . . . . . . . . 1 . . . . 1 . . . . . . . 1 . . Zone Layout 19 | . . . . 1 2 1 . . . . 6 . . . . 4 . . . . . 1 . 1 2 1 Derelict Proto ID Bank 1 | . . . 1 . . . . . . . . . . . . . . . . . . . . . . . Activate Exoskeleton 1 | . . . . . . . . . . . . . . . . . . . . . . . . . . 1 Fabricator Hacks 23 | . . . . . . 6 . . . . 2 . . . . 10 . . . . 3 . . 2 . . Load Schematic 13 | . . . . . . 4 . . . . 1 . . . . 5 . . . . 2 . . 1 . . Build 10 | . . . . . . 2 . . . . 1 . . . . 5 . . . . 1 . . 1 . . Repair Station Hacks 45 | . 2 . . . 8 . . . . . 10 . . . . 20 . . . . . . . . 5 . Scan Component 24 | . 1 . . . 4 . . . . . 5 . . . . 11 . . . . . . . . 3 . Repair 20 | . 1 . . . 4 . . . . . 4 . . . . 9 . . . . . . . . 2 . Refit 1 | . . . . . . . . . . . 1 . . . . . . . . . . . . . . . Recycling Unit Hacks 8 | . 1 . . . 1 2 . . . . 2 . . . . 1 . . . . . . . 1 . . Retrieve Components 8 | . 1 . . . 1 2 . . . . 2 . . . . 1 . . . . . . . 1 . . Scanalyzer 20 | . . . . . 10 . . . . . 1 . . . . 4 . . . . . . . . 5 . Insert Component 10 | . . . . . 5 . . . . . 1 . . . . 2 . . . . . . . . 2 . Analyze 10 | . . . . . 5 . . . . . . . . . . 2 . . . . . . . . 3 . Garrison Access Hacks 7 | . . . . . . 1 . . . . 3 . . . . 1 . . . . . . . 1 1 . Seal Access 7 | . . . . . . 1 . . . . 3 . . . . 1 . . . . . . . 1 1 . Unauthorized Hacks 59 | . 4 . . . 3 10 . . . . 11 . . . . 19 . . . . 1 . . 3 3 5 Terminals 38 | . 2 . . . 2 3 . . . . 7 . . . . 14 . . . . . . . 2 3 5 Track 13 | . . . . . . . . . . . 3 . . . . 7 . . . . . . . . 2 1 Assimilate 7 | . . . . . 1 . . . . . . . . . . 3 . . . . . . . 1 . 2 Botnet 12 | . 1 . . . . 3 . . . . 3 . . . . 2 . . . . . . . 1 1 1 Disrupt 1 | . . . . . . . . . . . . . . . . 1 . . . . . . . . . . Operators 5 | . 1 . . . 1 . . . . . 1 . . . . 1 . . . . . . . . . 1 Fabricators 6 | . . . . . . 1 . . . . . . . . . 4 . . . . . . . 1 . . Prioritize 4 | . . . . . . 1 . . . . . . . . . 2 . . . . . . . 1 . . Liberate 2 | . . . . . . . . . . . . . . . . 2 . . . . . . . . . . Repair Stations . | . . . . . . . . . . . . . . . . . . . . . . . . . . . Recycling Units 13 | . 2 . . . 1 5 . . . . 4 . . . . 1 . . . . . . . . . . Monitor 2 | . . . . . . 1 . . . . 1 . . . . . . . . . . . . . . . Reject 3 | . . . . . . 2 . . . . 1 . . . . . . . . . . . . . . . Mask 5 | . . . . . . 2 . . . . 2 . . . . 1 . . . . . . . . . . Tunnel 3 | . 2 . . . 1 . . . . . . . . . . . . . . . . . . . . . Scanalyzers . | . . . . . . . . . . . . . . . . . . . . . . . . . . . Garrison Access 2 | . . . . . . 1 . . . . . . . . . . . . . . 1 . . . . . Jam 2 | . . . . . . 1 . . . . . . . . . . . . . . 1 . . . . . Data Cores Recovered 1 | . . . . . . . . . . . . . . . . . . . . . . . . . 1 . Used 1 | . . . . . . . . . . . . . . . . . . . . . . . . . 1 . Hacking Detections 91 | . 8 . . 1 8 16 . . . . 13 . . . 1 16 . . . . 5 1 . 6 10 6 Full Trace Events 9 | . . . . . 1 2 . . . . 2 . . . . 3 . . . . 1 . . . . . Feedback Events . | . . . . . . . . . . . . . . . . . . . . . . . . . . . Feedback Blocked . | . . . . . . . . . . . . . . . . . . . . . . . . . . . Robot Schematics Acquired 6 | . . . . . . . . . . . . . . 4 . . . . . . . . . . . 2 Robots Built . | . . . . . . . . . . . . . . . . . . . . . . . . . . . Authchips . | . . . . . . . . . . . . . . . . . . . . . . . . . . . Time . | . . . . . . . . . . . . . . . . . . . . . . . . . . . Total Robot Build Rating . | . . . . . . . . . . . . . . . . . . . . . . . . . . . Part Schematics Acquired 29 | . . . . . 4 1 . 4 . . . . . 10 . 5 . . . . . . . . 2 3 Parts Built 12 | . . . . . . 3 . . . . 1 . . . . 6 . . . . 1 . . 1 . . Authchips 4 | . . . . . . 1 . . . . . . . . . 2 . . . . . . . 1 . . Time 586 | . . . . . . 119 . . . . 58 . . . . 201 . . . . 152 . . 56 . . Total Part Build Rating 86 | . . . . . . 25 . . . . 7 . . . . 43 . . . . 5 . . 6 . . Parts Repaired 20 | . 1 . . . 4 . . . . . 4 . . . . 9 . . . . . . . . 2 . Time 775 | . 26 . . . 158 . . . . . 136 . . . . 397 . . . . . . . . 58 . Parts Recycled . | . . . . . . . . . . . . . . . . . . . . . . . . . . . Recycled Matter . | . . . . . . . . . . . . . . . . . . . . . . . . . . . Retrieved Matter . | . . . . . . . . . . . . . . . . . . . . . . . . . . . Retrieved Components 25 | . 2 . . . . 1 . . . . 12 . . . . . . . . . . . . 10 . . Parts Scanalyzed 8 | . . . . . 4 . . . . . . . . . . 2 . . . . . . . . 2 . Part Schematics Acquired 8 | . . . . . 4 . . . . . . . . . . 2 . . . . . . . . 2 . Parts Damaged 1 | . . . . . . . . . . . . . . . . . . . . . . . . . 1 . Bothacking | -11 -10 -10 -10 -9 -8 -7 -7 -7 -7 -6 -6 -6 -6 -6 -5 -5 -5 -5 -5 -4 -4 -4 -4 -3 -3 -3 ------------ Run | Yrd Mat Min Exi Min Mat Fac Low Zio Dee Pro Fac Low Low Dat Pro Fac Upp Upp War Pro Fac Arm Lab Res Qua Sec Used RIF Installer . | . . . . . . . . . . . . . . . . . . . . . . . . . . . Robots Hacked 1 | . 1 . . . . . . . . . . . . . . . . . . . . . . . . . Non-combat 1 | . 1 . . . . . . . . . . . . . . . . . . . . . . . . . Combat . | . . . . . . . . . . . . . . . . . . . . . . . . . . . Robot Hacks Applied 1 | . 1 . . . . . . . . . . . . . . . . . . . . . . . . . find_recycling 1 | . 1 . . . . . . . . . . . . . . . . . . . . . . . . . Relay Couplers Released 2 | . . . . . . 2 . . . . . . . . . . . . . . . . . . . . Machine Destruction 2 | . . . . . . 2 . . . . . . . . . . . . . . . . . . . . Fabnet Peak Effective % . | . . . . . . . . . . . . . . . . . . . . . . . . . . . Robots Rewired 8 | . . . . . . . . . . . . . . . . . 1 . 5 . . 2 . . . . Allies Hacked 3 | . . . . . . . . . . . . . . . . 1 . . . . . . . 2 . . Hacks Repelled . | . . . . . . . . . . . . . . . . . . . . . . . . . . . Allies | -11 -10 -10 -10 -9 -8 -7 -7 -7 -7 -6 -6 -6 -6 -6 -5 -5 -5 -5 -5 -4 -4 -4 -4 -3 -3 -3 -------- Run | Yrd Mat Min Exi Min Mat Fac Low Zio Dee Pro Fac Low Low Dat Pro Fac Upp Upp War Pro Fac Arm Lab Res Qua Sec Total Allies 23 | . . . . . 1 3 . . . . . . . . . 6 1 . 5 . . 2 . 4 . 1 Largest Group 5 | . . . . . 1 3 3 3 3 . . . . . . 3 1 . 5 2 2 2 . 3 . 1 Highest-Rated Group 285 | . . . . . 10 93 93 90 90 . . . . . . 87 30 . 285 121 121 95 . 138 . 45 Highest-Rated Ally 65 | . . . . . 10 31 31 31 31 . . . . . . 29 30 . 65 65 65 65 . 46 . 45 Total Orders 4 | . . . . . . . . . . 3 1 . . . . . . . . . . . . . . . FOLLOW 1 | . . . . . . . . . . 1 . . . . . . . . . . . . . . . . EXPLORE 2 | . . . . . . . . . . 2 . . . . . . . . . . . . . . . . RETURN 1 | . . . . . . . . . . . 1 . . . . . . . . . . . . . . . Ally Attacks 123 | . . . 45 . . . 17 . 13 . . . . . . 22 1 . 6 . . 1 . 18 . . Total Damage 3670 | . . . 2216 . . . 233 . 143 . . . . . . 386 . . 275 . . 58 . 359 . . Kills 22 | . . . 13 . . . 1 . 2 . . . . . . 2 . . 2 . . . . 2 . . Allies Corrupted . | . . . . . . . . . . . . . . . . . . . . . . . . . . . Allies Melted . | . . . . . . . . . . . . . . . . . . . . . . . . . . . Turrets Deployed 3 | . . . 3 . . . . . . . . . . . . . . . . . . . . . . . Intel | -11 -10 -10 -10 -9 -8 -7 -7 -7 -7 -6 -6 -6 -6 -6 -5 -5 -5 -5 -5 -4 -4 -4 -4 -3 -3 -3 ------- Run | Yrd Mat Min Exi Min Mat Fac Low Zio Dee Pro Fac Low Low Dat Pro Fac Upp Upp War Pro Fac Arm Lab Res Qua Sec Robot Analysis Total 6 | . 1 . . . 1 1 . . . . 1 . . . . 1 . . . . . . . . . 1 Derelict Logs Recovered 12 | . . 2 . 1 . . 1 1 . 2 . 1 1 . . . 2 1 . . . . . . . . Drone Launches 3 | . . . . . . . . . . 3 . . . . . . . . . . . . . . . . Drone Recoveries 3 | . . . . . . . . . . 2 1 . . . . . . . . . . . . . . . Exploration | -11 -10 -10 -10 -9 -8 -7 -7 -7 -7 -6 -6 -6 -6 -6 -5 -5 -5 -5 -5 -4 -4 -4 -4 -3 -3 -3 ------------- Run | Yrd Mat Min Exi Min Mat Fac Low Zio Dee Pro Fac Low Low Dat Pro Fac Upp Upp War Pro Fac Arm Lab Res Qua Sec Turns Passed 32416 | 3 1837 1048 1428 557 2901 4079 455 983 628 505 1997 676 525 128 1139 3195 927 544 849 795 953 1128 705 1401 1883 1147 Spaces Moved 23211 | 1 956 624 642 230 981 2540 500 1128 433 711 2168 663 660 147 574 2664 926 670 890 654 1153 680 368 605 920 723 Core 18 | . . . . . . . . . 18 . . . . . . . . . . . . . . . . . Treads 5425 | 1 956 465 . . 507 1047 . . . . . . . . . . . . . . . 255 368 605 920 301 Legs 227 | . . . . . . . . . . . . . . . . . . . . . . 36 . . . 191 Wheels 1505 | . . 159 642 230 474 . . . . . . . . . . . . . . . . . . . . . Hover 15805 | . . . . . . 1493 500 1128 415 711 2168 663 660 147 574 2664 926 670 890 654 1153 389 . . . . Flight . | . . . . . . . . . . . . . . . . . . . . . . . . . . . Fastest Speed 30 | 160 160 125 125 215 116 74 74 74 74 58 58 65 65 65 66 55 71 71 61 61 53 53 155 155 155 30 Average Speed 105 | 160 160 151 198 215 217 139 74 74 93 58 67 65 65 66 162 74 72 71 65 61 53 98 155 155 155 123 Slowest Speed 550 | 160 160 240 215 215 320 307 74 74 550 74 200 65 65 130 180 230 141 71 71 61 53 225 155 155 160 155 Overloaded Moves . | . . . . . . . . . . . . . . . . . . . . . . . . . . . Propulsion Burnouts . | . . . . . . . . . . . . . . . . . . . . . . . . . . . Robots Hopped 1 | . . . . . . . . 1 . . . . . . . . . . . . . . . . . . Cave-ins Triggered 1 | . . . . . . . . . . . 1 . . . . . . . . . . . . . . . Teleports 4 | . . . . . . . . . . . . . . . . . . . . . . . . . . 4 Microwarps 18 | . . . . . . . . . . . . . . . . . . . . . . . . . . 18 Exploration Rate (%) 65 | 2 96 99 91 45 72 61 72 86 54 78 40 74 73 77 79 43 86 78 91 75 22 40 96 15 83 52 Regions Visited 26 Branch Regions 19 Pre-discovered Areas 10 | . 2 1 1 . 1 . 1 3 . . . . . 1 . . . . . . . . . . . . Known Exits Taken 22 | . . . . 1 1 1 1 1 1 1 1 1 1 1 1 1 1 1 1 1 1 1 1 1 1 . Unknown Exits Taken 4 | 1 1 1 1 . . . . . . . . . . . . . . . . . . . . . . . Scrap Searched 26 | . . 1 . 2 . . 3 2 . 3 . 1 2 . 3 . 5 3 . 1 . . . . . . Spaces Dug 706 | . . . . 37 24 46 42 . 28 35 44 29 77 . . 73 32 36 25 11 58 47 1 9 21 31 Terrain Destroyed 2382 | . . . 14 83 95 238 89 . 69 64 57 182 142 28 . 234 72 111 141 62 103 321 1 61 140 75 Melee 168 | . . . . 4 11 29 . . . 4 21 3 1 . . 41 . . 7 . 13 9 1 7 7 10 Projectile 188 | . . . 14 3 17 19 . . . 7 8 . . . . 41 . . . . 3 13 . 4 25 34 AOE 2021 | . . . . 75 64 190 89 . 69 53 28 179 141 28 . 151 72 111 134 62 87 299 . 50 108 31 Terrain Rammed 1 | . . . . . . . . . . . . . . . . 1 . . . . . . . . . . Walls Destroyed 1 | . . . . . . . . . . . . . . . . 1 . . . . . . . . . . Machines Disabled . | . . . . . . . . . . . . . . . . . . . . . . . . . . . Actions | -11 -10 -10 -10 -9 -8 -7 -7 -7 -7 -6 -6 -6 -6 -6 -5 -5 -5 -5 -5 -4 -4 -4 -4 -3 -3 -3 --------- Run | Yrd Mat Min Exi Min Mat Fac Low Zio Dee Pro Fac Low Low Dat Pro Fac Upp Upp War Pro Fac Arm Lab Res Qua Sec Total 28952 | 2 1139 680 748 266 1523 2899 559 1218 609 773 2567 871 719 164 768 3572 1118 702 1116 1029 1398 1003 445 938 1250 876 Wait 3039 | . 54 19 6 4 284 87 42 20 120 28 204 174 36 1 182 602 127 2 145 350 135 76 4 132 111 94 Move 22969 | . 955 623 641 229 980 2539 499 1125 432 710 2166 662 659 146 573 2663 925 669 889 653 1152 679 367 604 919 510 Hop 1 | . . . . . . . . 1 . . . . . . . . . . . . . . . . . . Pick Up 239 | . 18 3 22 1 20 27 1 8 4 1 23 2 . 3 3 22 3 2 6 . 5 15 7 11 10 22 Fast Attach 244 | . 9 2 5 1 25 11 . 6 6 2 14 4 1 2 1 35 1 1 10 . 8 15 11 11 40 23 Attach 100 | . . 1 1 . 7 9 . 3 5 2 7 1 . 1 3 11 2 1 1 . 5 14 . 2 4 20 Detach 37 | . . . . . 2 2 . 2 . . 1 . . . . 1 2 1 . . 1 8 . . 1 16 Swap 272 | 2 10 2 5 8 14 39 . 11 3 3 25 3 2 1 . 25 4 2 8 4 16 24 1 23 18 19 Drop 358 | . 18 4 20 2 34 35 . 13 2 2 24 4 . 4 . 28 5 2 17 . 7 26 15 19 51 26 Fire 1107 | . 66 23 48 15 133 94 9 . 7 21 32 10 7 5 . 95 29 10 12 21 47 115 1 115 58 134 Melee 515 | . 3 . . 6 24 54 8 2 30 4 70 11 14 1 6 89 14 12 12 1 22 22 39 21 38 12 Ram 1 | . . . . . . . . . . . . . . . . 1 . . . . . . . . . . Kick . | . . . . . . . . . . . . . . . . . . . . . . . . . . . Crush 6 | . 1 3 . . . . . . . . . . . . . . . . . . . 2 . . . . Escape Stasis 3 | . . . . . . 2 . . . . 1 . . . . . . . . . . . . . . . Rewire 27 | . . . . . . . . . . . . . . . . . 6 . 14 . . 7 . . . . Trap 5 | . 5 . . . . . . . . . . . . . . . . . . . . . . . . . Miscellaneous 29 | . . . . . . . . 27 . . . . . . . . . . 2 . . . . . . . Route ------- -11/Scrapyard -10/Materials (discovered 6 exits: [*Mat x3] / [*Min x2] / [*Sub]) -10/Mines (discovered 3 exits: [*Mat x2] / *Exi) -10/Exiles (discovered 2 exits: *Min x2) -9/Mines -8/Materials (discovered 3 exits: *Fac x3) -7/Factory (discovered 7 exits: *Fac x3 / *Sto x2 / *Low x2) -7/Lower Caves (discovered 2 exits: *Low / *Zio) -7/Zion (discovered 2 exits: *Dee / [*Pro]) -7/Deep Caves -6/Proximity Caves -6/Factory (discovered 4 exits: *Fac x2 / *Low x2) -6/Lower Caves -6/Lower Caves (discovered 2 exits: *Fac / *Dat) -6/Data Miner -5/Proximity Caves -5/Factory (discovered 8 exits: *Fac x4 / *Upp x2 / *Ext x2) -5/Upper Caves -5/Upper Caves (discovered 2 exits: *Fac / *War) -5/Warlord -4/Proximity Caves -4/Factory -4/Armory -4/Lab -3/Research (discovered 3 exits: *Res / *Qua x2) -3/Quarantine (discovered 2 exits: *Res / *Sec) -3/Section 7 (discovered 1 exit: Res) History --------- Turn | Location | Event 4 | -11/Scrapyard | Discovered new exit (range 0) 4 | -11/Scrapyard | Entered Materials 291 | -10/Materials | Discovered new exit (range 15) 300 | -10/Materials | Build established: Mutant 753 | -10/Materials | Discovered new exit (range 13) 893 | -10/Materials | Repaired Lgt. Treads 943 | -10/Materials | Discovered new exit (range 12) 1166 | -10/Materials | Discovered new exit (range 8) 1254 | -10/Materials | Discovered new exit (range 10) 1305 | -10/Materials | Discovered new exit (range 9) 1841 | -10/Materials | Entered Mines 1877 | -10/Mines | Learned location of Mines (-9) 2065 | -10/Mines | Discovered new exit (range 11) 2177 | -10/Mines | Learned Materials terminal intel 2198 | -10/Mines | Assembled infested the area 2203 | -10/Mines | Assisted by a Guerilla fighting off Assembled 2360 | -10/Mines | Deemed a non-threat by the Exiles lab entrance 2360 | -10/Mines | Discovered new exit (range 5) 2672 | -10/Mines | Core integrity fell below 50% 2729 | -10/Mines | Discovered new exit (range 6) 2889 | -10/Mines | Entered Exiles 2906 | -10/Exiles | Discovered new exit (range 15) 2919 | -10/Exiles | Met 8R-AWN 2941 | -10/Exiles | Met EX-HEX 2977 | -10/Exiles | Met EX-BIN 2997 | -10/Exiles | Aligned with FarCom system 2998 | -10/Exiles | Given EX-Vault access code 3027 | -10/Exiles | Opened EX-Vault 3038 | -10/Exiles | Found Deploy-a-Sentry 3041 | -10/Exiles | Found Deploy-a-Sentry 3044 | -10/Exiles | Found Deploy-a-Sentry 3056 | -10/Exiles | Found Skeleton Box 3063 | -10/Exiles | Found AWS/Autocannon 3109 | -10/Exiles | Warned to stay clear of 0b10 Research branches 3172 | -10/Exiles | Met EX-DEC 3185 | -10/Exiles | Learned location of Zion (-7) 3279 | -10/Exiles | Attacked by the Exiles 3286 | -10/Exiles | DAS Turret deployed 3288 | -10/Exiles | DAS Turret deployed 3291 | -10/Exiles | DAS Turret deployed 3303 | -10/Exiles | Allies destroyed EX-HEX 3305 | -10/Exiles | Allies destroyed EX-BIN 3307 | -10/Exiles | Core integrity fell below 20% 3326 | -10/Exiles | Allies destroyed 8R-AWN 3359 | -10/Exiles | Found Prototype Ballistic Gun 3359 | -10/Exiles | Identified 8R-AWN's Boregun 3580 | -10/Exiles | Destroyed EX-DEC 3672 | -10/Exiles | Found Deploy-a-Sentry 3680 | -10/Exiles | Found Prototype Processor 4296 | -10/Exiles | Discovered new exit (range 12) 4317 | -10/Exiles | Stole three prototypes: Skeleton Box, AWS/Autocannon, Deploy-a-Sentry 4317 | -10/Exiles | Entered Mines 4738 | -9/Mines | Identified exit to Materials 4874 | -9/Mines | Entered Materials 4874 | -8/Materials | Evolved 4 slots: Propulsion x1, Utility x2, Weapon x1 4875 | -8/Materials | Loaded intel: 12 terminal locations 5172 | -8/Materials | Build established: Scavenger-Mutant 5467 | -8/Materials | Identified exit to Factory 6314 | -8/Materials | Garrison activated, responded to threat 6433 | -8/Materials | Identified Exp. Core Analyzer 6878 | -8/Materials | Build established: Hacker-Mutant 7274 | -8/Materials | First assault squad dispatched 7296 | -8/Materials | Core integrity fell below 50% 7615 | -8/Materials | Repaired Adv. Treads 7654 | -8/Materials | Repaired Arm. Treads 7694 | -8/Materials | Repaired Adv. Treads 7739 | -8/Materials | Repaired Mak. Axe 7775 | -8/Materials | Entered Factory 7775 | -7/Factory | Evolved 2 slots: Utility x2 8004 | -7/Factory | Discovered new exit (range 5) 8014 | -7/Factory | Identified exit to Factory 8146 | -7/Factory | Identified exit to Storage 8146 | -7/Factory | Identified exit to Lower Caves 9583 | -7/Factory | Fabricated Exp. Core Analyzer (x1) 10420 | -7/Factory | Fabricated Cmb. Antigrav System? 10710 | -7/Factory | Discovered exit to Factory (range 5) 11018 | -7/Factory | Discovered exit to Factory (range 16) 11020 | -7/Factory | Destroyed 9 combat bots 11775 | -7/Factory | Build established: Mutant 11775 | -7/Factory | First assault squad dispatched 11836 | -7/Factory | Allied Derelicts emerged from ambush trap array 11854 | -7/Factory | Entered Lower Caves 11854 | -7/Lower Caves | Accompanied by 3 allies 11854 | -7/Lower Caves | Spotted 5X-REN(f) 11855 | -7/Lower Caves | Exp. Core Analyzer stolen by Master Thief 11856 | -7/Lower Caves | Encountered a Master Thief 11873 | -7/Lower Caves | Spotted B-75 Beast 12012 | -7/Lower Caves | Encountered a Warlord checkpoint 12194 | -7/Lower Caves | Discovered new exit (range 5) 12196 | -7/Lower Caves | A Derelict revealed a hidden shortcut to a safe place 12291 | -7/Lower Caves | Identified exit to Zion 12309 | -7/Lower Caves | Identified exit to Lower Caves 12309 | -7/Lower Caves | Entered Zion 12309 | -7/Zion | Accompanied by 3 allies 12363 | -7/Zion | System corruption cleaned by Quarantine Array 12509 | -7/Zion | Given the Hacking Drone Bay 12510 | -7/Zion | Found Prototype Device 12645 | -7/Zion | Learned location of 1 exit from Lower Caves 12661 | -7/Zion | Given A8's code to call for help 12679 | -7/Zion | Identified Hacking Drone Bay 12682 | -7/Zion | Found Prototype Device 12683 | -7/Zion | Identified Mobile Refinery Mk. CCLXVII 12711 | -7/Zion | Build established: Derelict-Mutant 12718 | -7/Zion | Found CR-A16's Pointy Stick 13015 | -7/Zion | Discovered new exit (range 14) 13281 | -7/Zion | Discovered new exit (range 5) 13284 | -7/Zion | Saw the warning signs outside the Deep Caves entrance 13287 | -7/Zion | Identified exit to Deep Caves 13292 | -7/Zion | Entered Deep Caves 13292 | -7/Deep Caves | Accompanied by 3 allies 13469 | -7/Deep Caves | Attacked by Z-Imprinter 13501 | -7/Deep Caves | Core integrity fell below 50% 13502 | -7/Deep Caves | Found Prototype Protection 13502 | -7/Deep Caves | Identified Zio. Weapon Casing 13506 | -7/Deep Caves | Lost 3 allies 13528 | -7/Deep Caves | Destroyed Z-Imprinter 13554 | -7/Deep Caves | Lost 9 parts (2p6u1w) 13730 | -7/Deep Caves | Z-Facility disabled 13908 | -7/Deep Caves | Discovered new exit (range 13) 13919 | -7/Deep Caves | Identified exit to Proximity Caves 13920 | -7/Deep Caves | Entered Proximity Caves 13922 | -6/Proximity Caves | Core integrity fell below 20% 13934 | -6/Proximity Caves | Build established: Scavenger-Mutant 13952 | -6/Proximity Caves | Learned Factory machine intel 14250 | -6/Proximity Caves | Learned Factory emergency access door positions 14409 | -6/Proximity Caves | Spotted B-75 Beast 14418 | -6/Proximity Caves | Discovered exit to Factory (range 12) 14425 | -6/Proximity Caves | Entered Factory 14425 | -6/Factory | Accompanied by 1 ally 14425 | -6/Factory | Evolved 2 slots: Propulsion x1, Utility x1 14427 | -6/Factory | Loaded intel: 264 machine locations 14472 | -6/Factory | Identified exit to Lower Caves 14502 | -6/Factory | Spotted B-75 Beast 14550 | -6/Factory | Lost 3 parts (1p1n1u) 14593 | -6/Factory | Repaired Cmb. Antigrav System 14628 | -6/Factory | Repaired Cmb. Antigrav System 14664 | -6/Factory | Repaired Cmb. Antigrav System 14736 | -6/Factory | Build established: Hacker-Mutant 15135 | -6/Factory | Discovered new exit (range 11) 15441 | -6/Factory | Revealed the true nature of CR-A16's Pointy Stick 15583 | -6/Factory | Repaired Cmb. Antigrav System 15639 | -6/Factory | Discovered new exit (range 11) 16052 | -6/Factory | Crushed by falling debris 16175 | -6/Factory | Search patrols dispatched 16216 | -6/Factory | Fabricated Adv. Transmission Jammer (x1) 16357 | -6/Factory | Build established: Mutant 16422 | -6/Factory | Entered Lower Caves 16423 | -6/Lower Caves | Identified exit to Lower Caves 16454 | -6/Lower Caves | Spotted B-75 Beast 16464 | -6/Lower Caves | Attracted the attention of an 0b10 checkpoint 16826 | -6/Lower Caves | Destroyed 10 combat bots 16878 | -6/Lower Caves | Learned Factory trap positions 17009 | -6/Lower Caves | Found Alien Artifact 17009 | -6/Lower Caves | Identified Core Expander 17009 | -6/Lower Caves | Installed Core Expander, added new Propulsion slot 17098 | -6/Lower Caves | Entered another Lower Caves area 17107 | -6/Lower Caves | Discovered new exit (range 12) 17113 | -6/Lower Caves | Identified exit to Factory 17118 | -6/Lower Caves | Attacked by a delusional Derelict stockpiling parts 17226 | -6/Lower Caves | Learned 4 Factory zone layouts 17492 | -6/Lower Caves | Spotted Z3-5G4(f) 17494 | -6/Lower Caves | Encountered a Master Thief 17508 | -6/Lower Caves | Destroyed Z3-5G4(f) 17539 | -6/Lower Caves | Discovered new exit (range 9) 17623 | -6/Lower Caves | Identified exit to Data Miner 17623 | -6/Lower Caves | Entered Data Miner 17624 | -6/Data Miner | Discovered new exit (range 6) 17637 | -6/Data Miner | Met Data Miner 17650 | -6/Data Miner | Learned location of Section 7 (-3) 17650 | -6/Data Miner | Acquired the access code to Warlord's prototype stash 17661 | -6/Data Miner | Received God Mode back door access code from Data Miner 17708 | -6/Data Miner | Destroyed Data Miner 17712 | -6/Data Miner | Found Prototype Hackware 17714 | -6/Data Miner | Found Prototype Hackware 17719 | -6/Data Miner | Data Conduit disabled 17737 | -6/Data Miner | Core integrity fell below 50% 17751 | -6/Data Miner | Identified exit to Proximity Caves 17751 | -6/Data Miner | Entered Proximity Caves 17779 | -5/Proximity Caves | Lost 7 parts (1p1n3u2w) 18044 | -5/Proximity Caves | Build established: Assassin 18095 | -5/Proximity Caves | Attracted the attention of an 0b10 checkpoint 18778 | -5/Proximity Caves | Discovered exit to Factory (range 7) 18890 | -5/Proximity Caves | Entered Factory 18890 | -5/Factory | Evolved 2 slots: Power x1, Utility x1 18892 | -5/Factory | Loaded intel: 113 trap records 18905 | -5/Factory | Identified Quantum Router 18906 | -5/Factory | Identified Deep Network Scanner 18919 | -5/Factory | Identified exit to Upper Caves 18919 | -5/Factory | Identified exit to Extension 18960 | -5/Factory | Identified exit to Factory 19190 | -5/Factory | Build established: Wizard-Mutant 19331 | -5/Factory | Repaired Adv. Sensor Array 19366 | -5/Factory | Repaired Cmb. Antigrav System 19402 | -5/Factory | Repaired Cmb. Antigrav System 19518 | -5/Factory | Lost 3 parts (1u2w) 19889 | -5/Factory | Lost 6 parts (2p2n2w) 19997 | -5/Factory | Fabricated Exp. Core Analyzer (x1) 20132 | -5/Factory | Found Hvy. Insulated Plating 20339 | -5/Factory | Repaired Cmb. Antigrav System 20371 | -5/Factory | Repaired Broken Cmb. Antigrav System 20451 | -5/Factory | Spotted B-75 Beast 20634 | -5/Factory | Fabricated Tiamat Missile Launcher (x1) 20660 | -5/Factory | Fabricated Cmb. Antigrav System (x2) 20959 | -5/Factory | Build established: Hacker-Mutant 21082 | -5/Factory | Core integrity fell below 50% 21271 | -5/Factory | Fabricated Lrn. Sensor Array (x1) 21363 | -5/Factory | Repaired Angular Momentum Engine 21433 | -5/Factory | Repaired Cmb. Antigrav System 21472 | -5/Factory | Repaired Imp. Power Shielding 21590 | -5/Factory | First assault squad dispatched 21779 | -5/Factory | Repaired Broken Cmb. Antigrav System? 21809 | -5/Factory | Fabricated Exp. Utility Shielding? 22085 | -5/Factory | Entered Upper Caves 22315 | -5/Upper Caves | Build established: Machinist-Mutant 22481 | -5/Upper Caves | Attracted the attention of an 0b10 outpost 22788 | -5/Upper Caves | Identified exit to Upper Caves 23012 | -5/Upper Caves | Entered another Upper Caves area 23018 | -5/Upper Caves | Discovered exit to Factory (range 7) 23373 | -5/Upper Caves | Encountered a Warlord checkpoint 23470 | -5/Upper Caves | Discovered new exit (range 5) 23473 | -5/Upper Caves | Identified exit to Warlord 23507 | -5/Upper Caves | Found Alien Artifact 23528 | -5/Upper Caves | Learned Factory interactive machine intel 23556 | -5/Upper Caves | Entered Warlord 23580 | -5/Warlord | System corruption reached 10% 23581 | -5/Warlord | System corruption cleaned by Quarantine Array 23598 | -5/Warlord | Discovered new exit (range 12) 23895 | -5/Warlord | Met Warlord 23902 | -5/Warlord | Opened Warlord's prototype stash 23908 | -5/Warlord | Found Prototype Device 23908 | -5/Warlord | Identified Exp. Cloaking Device 23920 | -5/Warlord | Warlord's base attacked by MAIN.C 23933 | -5/Warlord | Found Prototype Reactor 23933 | -5/Warlord | Identified Vortex Chain Reactor 24021 | -5/Warlord | Found Prototype Launcher 24021 | -5/Warlord | Identified Vortex Catalyst Activator 24099 | -5/Warlord | Destroyed 8 combat bots 24136 | -5/Warlord | Warlord forces counterattacked 24165 | -5/Warlord | Destroyed 9 combat bots 24178 | -5/Warlord | Lost 3 allies 24320 | -5/Warlord | Spotted Executioner 24352 | -5/Warlord | Identified exit to Proximity Caves 24360 | -5/Warlord | Lost 3 allies 24405 | -5/Warlord | Entered Proximity Caves 24405 | -4/Proximity Caves | Accompanied by 2 allies 24567 | -4/Proximity Caves | Attracted the attention of an 0b10 checkpoint 24666 | -4/Proximity Caves | Discovered exit to Factory (range 15) 25200 | -4/Proximity Caves | Entered Factory 25200 | -4/Factory | Accompanied by 2 allies 25200 | -4/Factory | Evolved 2 slots: Propulsion x1, Utility x1 25201 | -4/Factory | Identified exit to Armory 25202 | -4/Factory | Loaded intel: 52 interactive machine locations 25683 | -4/Factory | Spotted B-86 Titan 25781 | -4/Factory | Fabricated Exp. Utility Shielding? 25932 | -4/Factory | Build established: Hacker-Mutant 26153 | -4/Factory | Entered Armory 26220 | -4/Armory | Found Enh. Force Lance 26346 | -4/Armory | Destroyed 7 combat bots 26556 | -4/Armory | Lost 4 parts (2n1u1w) 26751 | -4/Armory | Core integrity fell below 50% 26783 | -4/Armory | Destroyed 14 combat bots 26887 | -4/Armory | Found Prototype Slashing Weapon 26887 | -4/Armory | Identified Molecular Scythe 26939 | -4/Armory | First assault squad dispatched 26970 | -4/Armory | System corruption reached 10% 26987 | -4/Armory | High security lockdown imminent 27016 | -4/Armory | Destroyed 8 combat bots 27067 | -4/Armory | High security lockdown engaged 27118 | -4/Armory | Destroyed 19 combat bots 27236 | -4/Armory | Destroyed 8 combat bots 27274 | -4/Armory | Discovered new exit (range 5) 27280 | -4/Armory | Identified exit to Lab 27281 | -4/Armory | Entered Lab 27281 | -4/Lab | Discovered new exit (range 9) 27292 | -4/Lab | Identified exit to Research 27592 | -4/Lab | Detected for breach 27594 | -4/Lab | Unable to decrypt terminal 27595 | -4/Lab | Gained access to the hidden lab's interior 27604 | -4/Lab | Confronted by A5 27644 | -4/Lab | Destroyed A5 27705 | -4/Lab | Found Alien Artifact 27705 | -4/Lab | Identified Integrated Mediator 27705 | -4/Lab | Installed Integrated Mediator, increased core attachment efficiency 27717 | -4/Lab | Found Alien Artifact 27717 | -4/Lab | Identified Core Regenerator 27717 | -4/Lab | Used Core Regenerator, restored core integrity (+287) 27759 | -4/Lab | Found Deep Network Scanner 27765 | -4/Lab | Found Prototype Protection 27765 | -4/Lab | Identified Exp. Powered Armor 27775 | -4/Lab | Found Prototype Energy Cannon 27775 | -4/Lab | Identified Warp Cannon 27780 | -4/Lab | Found Prototype Energy Gun 27780 | -4/Lab | Identified Tachyon Dispersion Ray 27879 | -4/Lab | Unable to decrypt terminal 27932 | -4/Lab | Found Alien Artifact 27947 | -4/Lab | Found Alien Artifact 27977 | -4/Lab | Unable to decrypt terminal 27986 | -4/Lab | Entered Research 27986 | -3/Research | Evolved 2 slots: Power x1, Utility x1 28120 | -3/Research | Found Prototype Device 28120 | -3/Research | Identified Exp. Thermal Shield 28234 | -3/Research | Identified exit to Quarantine 28343 | -3/Research | Fabricated Tiamat Missile Launcher (x1) 28561 | -3/Research | Intercept squad dispatched 28580 | -3/Research | Spotted Tracker 28580 | -3/Research | Spotted Tracker 28581 | -3/Research | Destroyed Tracker 28586 | -3/Research | Destroyed Tracker 28598 | -3/Research | Spotted Combat Programmer 28600 | -3/Research | Destroyed Combat Programmer 28639 | -3/Research | Found Prototype Processor 28639 | -3/Research | Identified Exp. Targeting Computer 28643 | -3/Research | Found Prototype Device 28643 | -3/Research | Identified Exp. Phase Shifter 28649 | -3/Research | Spotted Combat Programmer 28665 | -3/Research | Destroyed Combat Programmer 28921 | -3/Research | Discovered new exit (range 3) 28925 | -3/Research | Identified exit to Research 29156 | -3/Research | Destroyed 8 combat bots 29380 | -3/Research | Intercept squad dispatched 29387 | -3/Research | Entered Quarantine 29403 | -3/Quarantine | Found Alien Artifact 29437 | -3/Quarantine | Found Alien Artifact 29437 | -3/Quarantine | Identified Core Reset Matrix (x2) 29437 | -3/Quarantine | Identified Hpw. Transdimensional Reconstructor 29437 | -3/Quarantine | Identified Transdimensional Reconstructor 29437 | -3/Quarantine | Used Core Reset Matrix 29441 | -3/Quarantine | Detected hypermatrix surge 29441 | -3/Quarantine | Sensed 14 artifacts in vicinity 29473 | -3/Quarantine | Found Subatomic Replicator 29526 | -3/Quarantine | Found Sigix Broadsword 29557 | -3/Quarantine | Cryocooling Duct disabled 29572 | -3/Quarantine | Ambient heat levels rising (+20) 29572 | -3/Quarantine | Non-combat units ordered to evacuate 29637 | -3/Quarantine | First assault squad dispatched 30153 | -3/Quarantine | Repaired Adv. Heavy Siege Treads 30324 | -3/Quarantine | Discovered exit to Research (range 16) 30471 | -3/Quarantine | Spotted Alpha 7 30500 | -3/Quarantine | Destroyed Alpha 7 30577 | -3/Quarantine | Found Prototype Energy Gun 30577 | -3/Quarantine | Identified Enh. Gamma Rifle 30613 | -3/Quarantine | Intercept squad dispatched 30620 | -3/Quarantine | Spotted Tracker 30622 | -3/Quarantine | Destroyed Tracker 30637 | -3/Quarantine | Spotted Combat Programmer 30642 | -3/Quarantine | Destroyed Combat Programmer 30643 | -3/Quarantine | System corruption reached 10% 30709 | -3/Quarantine | Found Core Stripper 30780 | -3/Quarantine | Found Core Cannon 30810 | -3/Quarantine | Found Prototype Processor 30810 | -3/Quarantine | Identified Exp. Signal Interpreter 30960 | -3/Quarantine | Repaired Broken Biometal Heavy Treads 31031 | -3/Quarantine | Spotted Fortress 31037 | -3/Quarantine | Destroyed Fortress 31047 | -3/Quarantine | Found Prototype Reactor 31047 | -3/Quarantine | Identified Vortex Chain Reactor 31085 | -3/Quarantine | Found Prototype Device 31085 | -3/Quarantine | Identified Thermal Barrier 31088 | -3/Quarantine | Found Prototype Device 31088 | -3/Quarantine | Identified Exp. Force Field 31104 | -3/Quarantine | Found Prototype Device 31104 | -3/Quarantine | Identified Exp. EM Disruption Field 31158 | -3/Quarantine | Found Vortex Chain Reactor 31240 | -3/Quarantine | Intercept squad dispatched 31259 | -3/Quarantine | Spotted Tracker 31260 | -3/Quarantine | Discovered new exit (range 6) 31268 | -3/Quarantine | Identified exit to Section 7 31270 | -3/Quarantine | Entered Section 7 31271 | -3/Section 7 | Sensed 19 artifacts in vicinity 31312 | -3/Section 7 | Spotted S7 Guard 31483 | -3/Section 7 | Found Microwarp Drive 31637 | -3/Section 7 | Found Integrated Reactor 31637 | -3/Section 7 | Installed Integrated Reactor, increased core energy generation (+10) 31813 | -3/Section 7 | Spotted B-86 Titan 31839 | -3/Section 7 | Spotted S7 Guard 31839 | -3/Section 7 | Scanned by Researcher 31851 | -3/Section 7 | Found Core Membrane 31851 | -3/Section 7 | Installed Core Membrane, gained immunity to corruption 31865 | -3/Section 7 | Destroyed S7 Guard 32005 | -3/Section 7 | Intercept squad dispatched 32015 | -3/Section 7 | Spotted Executioner 32015 | -3/Section 7 | Spotted Executioner 32019 | -3/Section 7 | Spotted Executioner 32019 | -3/Section 7 | Spotted Executioner 32031 | -3/Section 7 | Spotted Tracker 32041 | -3/Section 7 | Destroyed Tracker 32047 | -3/Section 7 | Integrated with Sigix Exoskeleton 32078 | -3/Section 7 | Spotted Combat Programmer 32107 | -3/Section 7 | Destroyed Combat Programmer 32124 | -3/Section 7 | Core integrity fell below 50% 32136 | -3/Section 7 | Destroyed Executioner 32142 | -3/Section 7 | Destroyed Executioner 32156 | -3/Section 7 | Found Prototype Processor 32156 | -3/Section 7 | Identified Exp. Core Analyzer 32159 | -3/Section 7 | Found Exp. Core Analyzer 32161 | -3/Section 7 | Found Exp. Core Analyzer 32209 | -3/Section 7 | Spotted Striker 32209 | -3/Section 7 | Spotted Striker 32212 | -3/Section 7 | Sigix Exoskeleton integrity reduced to 80% 32219 | -3/Section 7 | Destroyed 16 combat bots 32243 | -3/Section 7 | Destroyed Striker 32263 | -3/Section 7 | Destroyed Striker 32298 | -3/Section 7 | Spotted Striker 32298 | -3/Section 7 | Spotted Striker 32301 | -3/Section 7 | Build established: Alien-Sigix 32304 | -3/Section 7 | Destroyed Striker 32308 | -3/Section 7 | Destroyed Striker 32319 | -3/Section 7 | Found Sigix Shearcannon 32323 | -3/Section 7 | Warped through subspace 32360 | -3/Section 7 | Found Hpw. Transdimensional Reconstructor 32365 | -3/Section 7 | Found Transdimensional Reconstructor 32396 | -3/Section 7 | Found Transdimensional Reconstructor 32396 | -3/Section 7 | Warped through subspace 32400 | -3/Section 7 | Core integrity fell below 20% 32409 | -3/Section 7 | Sigix Exoskeleton integrity reduced to 60% 32412 | -3/Section 7 | Warped through subspace 32413 | -3/Section 7 | Warped through subspace 32414 | -3/Section 7 | Spotted Striker 32414 | -3/Section 7 | Spotted Executioner 32417 | -3/Section 7 | Destroyed by G-67 Veteran with Field Laser Last Messages --------------- 32410_ Microwarped (distance 28). 32411_ C-30 ARC bursts open, deploying its payload. 32411_ G-73 Enforcer unfolds itself. 32411_ G-67 Veteran unfolds itself. 32411_ E-15 Imp unfolds itself. 32411_ Construction Supplies damaged. 32411_ Dropped Lrn. Tractor Beam. 32412_ Warped through subspace. 32414_ System corrupted: Heat flow error (+123). 32414_ C-30 ARC bursts open, deploying its payload. 32414_ H-77 Assassin unfolds itself. 32414_ Executioner unfolds itself. 32414_ Striker unfolds itself. 32414_ M-36 Artificer unfolds itself. 32414_ Penetrated by Slug. 32414_ Slug penetrates Reinforced Barrier. 32414_ Knocked back. 32415_ Microwarped (distance 5). 32416_ Penetrated by Slug. 32416_ Slug penetrates Reinforced Barrier. Map ----- +----------------------------------------------------+ | | | | | | | | | | | | | | | | | | | | | | | | | | | | | | | ################################################## | | ################################################## | | ################################################## | | ################################################## | | ################################################## | | ################################################## | | ################################################## | | ################################ ################# | | ####################### ######### ################ | | ################################################## | | #"" #"" "]" ""#""""""""""X %[""!"""""""""""### | | %%%!#*" "" " # % ! gg%!=""""""""""### | | # "!# # ""=i%" """""""""### | | ########"""#### b !l%*""" """"""""### | | T g %[=""""" """ " " | | "" mg KE =*"""""" " "%" ### | | " g %h """"""" "" "### | | "" """"""" m g """""""""""""### | | " "g gg """""""""""### | | "" """" " g """""""""""### | | "" "%" """"""""""### | | "" " gm " " """""### | | " " """""### | | " % """### | | "### | | ""### | | """"""""""""" "### | | """"""""""" ### | | " " " " " " ## | | " % ## | | "" ### | | "" ""## | | " ""### | | " """" "" ""### | | " """"""""" """"" ""## | +----------------------------------------------------+ Best States ------------- Heat Dissipation 136 Energy Generation 89 Energy Capacity 1235 Matter Stores 300 Matter Capacity 700 Sight Range 22 Robot Scan Range 18 Terrain Scan Range 18 Terrain Scan Density 210 ECM Strength 1 Jamming Range 16 Cloak Strength 4 Armor Coverage 800 Resistance: KI 50 Resistance: TH 50 Resistance: EX 50 Resistance: EM 50 Resistance: I 50 Resistance: S 50 Resistance: P 50 Power Shielding 66 Utility Shielding 90 Weapon Shielding 100 Weapon Cycling 20 Phase Shifting 20 Evasion (%) 64 Targeting Accuracy 20 Melee Accuracy 8 Launcher Accuracy 20 Core Analysis 8 Recoil Reduction 6 Salvage Targeting 1 Offensive Hacking 45 Defensive Hacking 37 Authchip Count 5 Item Schematics ----------------- Exp. Phase Shifter | -3/Quarantine | Scanalyzed Imp. Weapon Cycler | -3/Quarantine | Scanalyzed Exp. Hacking Suite | -3/Section 7 | Archive Hvy. Gatling Laser | -3/Section 7 | Archive Molecular Scythe | -3/Section 7 | Archive Robot Schematics ------------------ A-02 Transporter | -3/Section 7 | Archive K-01 Serf | -3/Section 7 | Archive Fabricated ------------ Exp. Core Analyzer | x1 | -7/Factory | Authchip Cmb. Antigrav System | x2 | -7/Factory Adv. Transmission Jammer | x1 | -6/Factory Exp. Core Analyzer | x1 | -5/Factory | Authchip Tiamat Missile Launcher | x1 | -5/Factory | Authchip Cmb. Antigrav System | x2 | -5/Factory Lrn. Sensor Array | x1 | -5/Factory Exp. Utility Shielding | x1 | -5/Factory Exp. Utility Shielding | x1 | -4/Factory Tiamat Missile Launcher | x1 | -3/Research | Authchip Alien Tech Used ----------------- Core Expander Integrated Mediator Core Regenerator Core Reset Matrix Sigix Broadsword Core Stripper Integrated Reactor Microwarp Drive Core Membrane Sigix Exoskeleton Sigix Sheargun Sigix Shearcannon High-powered Transdimensional Reconstructor Transdimensional Reconstructor Achievements -------------- None Challenges ------------ None Game ------ Seed ComponentPowerCapacitor Manual? 0 Play Time 08:28:39 Cumulative 218.3 hours Start 2024.04.26 @ 09:57:40 End 2024.04.26 @ 19:06:52 Sessions 1 Manual Loads 0 Difficulty Rogue Special Mode None Game No. 83 Rogue 81 Adventurer 2 Explorer 0 Win Type - Total 5 Types 4/0/0/1/0/0/0/0/0 Lore% 73 Gallery% 80 Achievement% 67 Wizard Run 0 Options --------- Layout 0 ASCII 0 Keyboard 0 Movement Numpad Keybinds 0 Fullscreen 2 Font 24/Smallcaps Map View 76x50 Zoom Use 0% Tactical HUD 1 Map Filters NONE Filters NONE Steam 1 RUN: fb94242d-2e03-4ee1-a8ed-139f9d47e997